Cogmind - Beta 12 *** ADVENTURER MODE // 2023.10.21 @ 23:16:49 Player: EveningMars Result: Destroyed by S-27 Virus with Autogun Performance ------------- Evolutions (6) 3000 Regions Visited (13) 2600 Robots Destroyed (26) 130 Value Destroyed (819) 819 Prototype IDs (1) 20 Alien Tech Used (0) 0 Bonus (375) 375 TOTAL SCORE: 6944 Bonus ------- Pacifist 200 High Alert Combat Kills 30 Follower Combat Kills 145 Cogmind --------- Core Integrity 0/1150 Matter 280/300 Energy 100/100 System Corruption 3% Temperature Cool (0) Movement Walking (90) Location -4/Factory Parts ------- > --- POWER (3) -------- (None) > --- PROPULSION (7) --- VSS Leg > --- UTILITY (6) ------ Improved Targeting Computer > --- WEAPON (3) ------- (None) > --- INVENTORY (5) ---- Improved Actuator Array Thermal Shield Peak State ------------ > --- POWER ------------ Reinforced Deuterium Engine Light Angular Momentum Engine Light Angular Momentum Engine > --- PROPULSION ------- Carbon-fiber Leg Carbon-fiber Leg Carbon-fiber Leg Carbon-fiber Leg Carbon-fiber Leg Carbon-fiber Leg > --- UTILITY ---------- Improved Targeting Computer Improved Actuator Array Thermal Shield > --- WEAPON ----------- Slug Cannon Phasing Sabre > --- INVENTORY -------- Carbon-fiber Leg Heavy Laser Heavy Laser [Rating: 55] Favorites ----------- Power Light Nuclear Core Engine Backup Power III Power Core Light Nuclear Core Reactor Antimatter Reactor Propulsion VTOL Module Leg Carbon-fiber Leg Wheel Compact Wheel Flight Unit VTOL Module Utility Improved Targeting Computer Device Terrain Scanner Storage Small Storage Unit Processor Improved Targeting Computer Protection Backup Plating III Weapon Backup Laser III Energy Gun Backup Laser III Ballistic Gun Assault Rifle Ballistic Cannon Slug Cannon Launcher Mini Grenade Launcher Slashing Weapon Phasing Sabre Build | -11 -10 -9 -9 -8 -7 -7 -7 -6 -6 -6 -5 -5 -4 ------- Run | Jun Mat Mat Sto Mat Fac Was Fac Fac Low Low Fac Ext Fac Slots Evolved 12 | . . 2 . 2 2 . . 2 . . 2 . 2 Power 2 | . . . . 1 1 . . . . . . . . Propulsion 5 | . . 1 . . 1 . . 1 . . 1 . 1 Utility 4 | . . 1 . 1 . . . 1 . . 1 . . Weapon 1 | . . . . . . . . . . . . . 1 Parts Attached 72 | 6 . 2 7 8 1 3 15 1 . 1 . 18 10 Power 18 | 1 . . 1 2 . 1 6 . . . . 4 3 Engine 11 | 1 . . 1 2 . . 2 . . . . 4 1 Core 5 | . . . . . . 1 4 . . . . . . Reactor 2 | . . . . . . . . . . . . . 2 Propulsion 27 | 2 . . . 3 1 2 5 . . 1 . 8 5 Treads . | . . . . . . . . . . . . . . Leg 12 | . . . . . . . . . . . . 8 4 Wheel 4 | 2 . . . 1 . . . . . . . . 1 Hover . | . . . . . . . . . . . . . . Flight 11 | . . . . 2 1 2 5 . . 1 . . . Utility 9 | 1 . 2 . . . . 2 1 . . . 3 . Device 5 | . . 1 . . . . 1 . . . . 3 . Storage 1 | 1 . . . . . . . . . . . . . Processor 2 | . . . . . . . 1 1 . . . . . Hackware . | . . . . . . . . . . . . . . Protection 1 | . . 1 . . . . . . . . . . . Artifact . | . . . . . . . . . . . . . . Weapon 18 | 2 . . 6 3 . . 2 . . . . 3 2 Energy Gun 6 | 1 . . 2 . . . 1 . . . . . 2 Energy Cannon . | . . . . . . . . . . . . . . Ballistic Gun 3 | 1 . . 1 1 . . . . . . . . . Ballistic Cannon 3 | . . . . . . . 1 . . . . 2 . Launcher 5 | . . . 3 2 . . . . . . . . . Special Weapon . | . . . . . . . . . . . . . . Impact Weapon . | . . . . . . . . . . . . . . Slashing Weapon 1 | . . . . . . . . . . . . 1 . Piercing Weapon . | . . . . . . . . . . . . . . Special Melee Weapon . | . . . . . . . . . . . . . . Unidentified Prototypes 1 | . . . . . . . . . . . . . 1 Corrupted Parts 1 | . . . . . . . . . . . . . 1 System Corruption 3 | . . . . . . . . . . . . . 3 Parts Lost 52 | . . . 7 6 1 . 9 . 1 3 . 16 9 Power 16 | . . . 2 2 . . 2 . 1 1 . 5 3 Propulsion 22 | . . . 2 . 1 . 5 . . 2 . 8 4 Utility 6 | . . . 1 1 . . 2 . . . . 2 . Weapon 8 | . . . 2 3 . . . . . . . 1 2 Highest Loss Streak 9 | . . . 7 6 1 . 9 . 1 4 . 9 7 To Critical Strikes 1 | . . . . . . . . . . . . 1 . Average Slot Usage (%) 50 | . 85 77 81 27 21 37 64 54 60 51 35 48 11 Engine 4 | . 14 11 9 2 . . 5 . . . . 6 . Core 4 | . . . . . . 4 7 20 20 10 5 . . Leg 4 | . . . . . . . . . . . . 16 5 Wheel 3 | . 28 22 18 . . . . . . . . . . Flight 11 | . . . . 5 21 24 24 26 26 26 17 2 . Device 3 | . . 11 11 4 . . 1 . . . . 6 . Storage 2 | . 14 11 11 5 . . . . . . . . . Processor 4 | . . . . . . . . 7 13 13 11 8 5 Protection 3 | . . . 9 . . 1 11 . . . . . . Energy Gun 4 | . 14 11 10 2 . 5 10 . . . . . . Ballistic Gun 1 | . 14 11 9 . . . . . . . . . . Naked Turns 15 | . . . . 1 . . 14 . . . . . . Heaviest Build 51 | 14 14 20 20 13 . 15 27 15 15 10 5 51 16 Greatest Support 90 | 26 26 26 26 10 14 19 19 16 16 22 14 90 60 Greatest Overweight (x) 7 | . . . 3 4 . . 7 . . . . 4 5 Average Overweight (x) . | . . . . . . . . . . . . . . Largest Inventory Capacity 8 | 8 8 8 8 8 5 5 5 5 5 5 5 5 5 Average Capacity 5 | 7 8 8 8 6 5 5 5 5 5 5 5 5 5 Most Carried 5 | 2 2 2 5 3 5 5 5 5 5 5 5 5 5 Average Carried 3 | . 2 2 3 2 4 4 4 5 4 5 5 3 3 Final Capacity 8 | 8 8 8 8 5 5 5 5 5 5 5 5 5 5 Final Carried 5 | 2 2 2 2 3 5 5 5 5 5 5 5 5 2 Class Distribution -------------------- 41% | Mutant 32% | Sprinter 14% | Scavenger-Sprinter 6% | Derelict-Mutant 5% | Scavenger-Mutant Dominant Class ---------------- Mutant | -10/Materials Mutant | -9/Materials Mutant | -9/Storage Mutant | -8/Materials Sprinter | -7/Factory Sprinter | -7/Waste Sprinter | -7/Factory Scavenger-Sprinter | -6/Factory Scavenger-Sprinter | -6/Lower Caves Sprinter | -6/Lower Caves Sprinter | -5/Factory Mutant | -5/Extension Mutant | -4/Factory Resources | -11 -10 -9 -9 -8 -7 -7 -7 -6 -6 -6 -5 -5 -4 ----------- Run | Jun Mat Mat Sto Mat Fac Was Fac Fac Low Low Fac Ext Fac Matter Collected 894 | 214 . . 57 14 . 250 89 . 19 27 . 204 20 Remotely . | . . . . . . . . . . . . . . Salvage Created 556 | . . . 61 95 . . 135 . . . . 265 . Parts 45 | . . . 2 13 . . 18 . . . . 12 . Haulers Intercepted . | . . . . . . . . . . . . . . Recyclers Shooed . | . . . . . . . . . . . . . . Parts Field Recycled . | . . . . . . . . . . . . . . Retrieved Matter . | . . . . . . . . . . . . . . Parts Self-Destructed . | . . . . . . . . . . . . . . Prevented . | . . . . . . . . . . . . . . Kills | -11 -10 -9 -9 -8 -7 -7 -7 -6 -6 -6 -5 -5 -4 ------- Run | Jun Mat Mat Sto Mat Fac Was Fac Fac Low Low Fac Ext Fac Combat Hostiles Destroyed 21 | . . . 2 5 . . 10 . . . . 4 . Melee 4 | . . . . . . . . . . . . 4 . Guns 2 | . . . 1 1 . . . . . . . . . AOE 15 | . . . 1 4 . . 10 . . . . . . Classes Destroyed 6 | . . . 2 3 . . . . . . . 1 . Worker 1 | . . . . 1 . . . . . . . . . Builder 3 | . . . . 2 . . 1 . . . . . . Operator 1 | . . . . . . . . . . . . 1 . Swarmer 13 | . . . . 3 . . 10 . . . . . . Grunt 3 | . . . 1 . . . . . . . . 2 . Sentry 5 | . . . 1 2 . . . . . . . 2 . Best Kill Streak 11 | . . . 1 5 . . 11 . . . . 3 . Combat Bots Only 10 | . . . 1 3 . . 10 . . . . 3 . Max Kills in Single Turn 10 | . . . 1 3 . . 10 . . . . 1 . Gunslinging . | . . . . . . . . . . . . . . Exploded 10 | . . . 1 2 . . 10 . . . . . . Melee 1 | . . . . . . . . . . . . 1 . Uniques/NPCs Destroyed . | . . . . . . . . . . . . . . Combat | -11 -10 -9 -9 -8 -7 -7 -7 -6 -6 -6 -5 -5 -4 -------- Run | Jun Mat Mat Sto Mat Fac Was Fac Fac Low Low Fac Ext Fac Damage Taken 6966 | . . 36 846 480 119 23 960 28 10 98 . 2118 2248 Core 2983 | . . 24 190 246 63 23 400 . . 65 . 812 1160 Absorbed by Shields 50 | . . . . . . . 31 . . . . 19 . Regen/Repaired (Parts) 7 | . . . . . . 7 . . . . . . . Core Remaining (%) 63 | 100 100 . 46 55 . . 30 . . 92 . 18 . Volleys Fired 17 | . . . 6 5 . . 1 . . . . 3 2 Largest 2 | . . . 2 2 . . 1 . . . . 1 2 Hottest 138 | . . . 70 70 . . 48 . . . . 48 138 Shots Fired 30 | . . . 12 10 . . 1 . . . . 3 4 Gun 13 | . . . 6 3 . . . . . . . . 4 Cannon 4 | . . . . . . . 1 . . . . 3 . Launcher 13 | . . . 6 7 . . . . . . . . . Special . | . . . . . . . . . . . . . . Kinetic 9 | . . . 3 2 . . 1 . . . . 3 . Thermal 8 | . . . 3 1 . . . . . . . . 4 Explosive 13 | . . . 6 7 . . . . . . . . . Electromagnetic . | . . . . . . . . . . . . . . Robot Hit Streak 10 | . . . 9 10 . . . . . . . 2 6 Robot Miss Streak 2 | . . . 1 1 . . 1 . . . . 2 . Penetration Max . | . . . . . . . . . . . . . . Secondary Targets . | . . . . . . . . . . . . . . Shots Hit Robots 38 | . . . 10 7 . . . . . . . 17 4 Core Hits 39 | . . . 8 12 . . 10 . . . . 7 2 Critical Kills . | . . . . . . . . . . . . . . Critical Parts Destroyed . | . . . . . . . . . . . . . . Critical Strikes 3 | . . . 2 . . . . . . . . 1 . Burn 2 | . . . 2 . . . . . . . . . . Sever 1 | . . . . . . . . . . . . 1 . Melee Attacks 15 | . . . . . . . . . . . . 15 . Impact . | . . . . . . . . . . . . . . Slashing 15 | . . . . . . . . . . . . 15 . Piercing . | . . . . . . . . . . . . . . Sneak Attacks 1 | . . . . . . . . . . . . 1 . Combat Hostiles . | . . . . . . . . . . . . . . Follow-up Attacks . | . . . . . . . . . . . . . . Damage Inflicted 2619 | . . . 181 403 . . 1163 . . . . 778 94 Guns 178 | . . . 76 26 . . . . . . . . 76 Cannons 62 | . . . . . . . . . . . . 62 . Explosions 1631 | . . . 94 377 . . 1160 . . . . . . Melee 716 | . . . . . . . . . . . . 716 . Ramming 32 | . . . 11 . . . 3 . . . . . 18 Kinetic 113 | . . . 37 14 . . . . . . . 62 . Thermal 127 | . . . 39 12 . . . . . . . . 76 Explosive 1631 | . . . 94 377 . . 1160 . . . . . . Electromagnetic . | . . . . . . . . . . . . . . Impact . | . . . . . . . . . . . . . . Slashing 716 | . . . . . . . . . . . . 716 . Piercing . | . . . . . . . . . . . . . . Highest Corruption 7 | . . . 7 . . . 3 . . . . 4 3 Average Corruption 3 | . . . 5 . . . 2 . . . . 4 3 Corruption Purged . | . . . . . . . . . . . . . . Corruption Blocked . | . . . . . . . . . . . . . . Effects 9 | . . . 2 . . . 2 . . . . 4 1 Message Errors 1 | . . . . . . . . . . . . 1 . Matter Fused 5 | . . . 1 . . . 2 . . . . 1 1 Energy Discharges 2 | . . . 1 . . . . . . . . 1 . Parts Fused 1 | . . . . . . . . . . . . 1 . Overload Shots . | . . . . . . . . . . . . . . Overflow Damage 234 | . . . . 53 . . 56 . . . . 125 . Projectiles . | . . . . . . . . . . . . . . Explosions 109 | . . . . 53 . . 56 . . . . . . Melee 125 | . . . . . . . . . . . . 125 . Knockbacks . | . . . . . . . . . . . . . . Impact . | . . . . . . . . . . . . . . Kinetic . | . . . . . . . . . . . . . . Secondary . | . . . . . . . . . . . . . . Self-Inflicted Damage 210 | . . . 4 116 . . 90 . . . . . . Shots 7 | . . . . 6 . . 1 . . . . . . Rammed 7 | . . . 5 . . . 2 . . . . . . Targets Rammed 29 | . . . 5 . . . 2 . . . . . 22 Kicked 22 | . . . . . . . . . . . . . 22 Crushed . | . . . . . . . . . . . . . . Highest Temperature 273 | . . 4 153 21 . . 118 273 272 46 . 13 18 Average Temperature 102 | . . 4 55 8 . . 41 143 143 27 . 5 10 Received Heat Transfer 1595 | . . 27 507 126 12 . 108 9 . 21 . 599 186 Siege Activations . | . . . . . . . . . . . . . . Robots Corrupted . | . . . . . . . . . . . . . . Combat Hostiles . | . . . . . . . . . . . . . . Parts Fried . | . . . . . . . . . . . . . . Impact Corruptions . | . . . . . . . . . . . . . . Robots Melted . | . . . . . . . . . . . . . . Combat Hostiles . | . . . . . . . . . . . . . . Parts Melted . | . . . . . . . . . . . . . . Heat Transferred 432 | . . . 259 25 . . . . . . . . 148 Parts Sabotaged . | . . . . . . . . . . . . . . Parts Stolen . | . . . . . . . . . . . . . . Parts Stripped . | . . . . . . . . . . . . . . Power Chain Reactions . | . . . . . . . . . . . . . . Missiles Intercepted . | . . . . . . . . . . . . . . Alert | -11 -10 -9 -9 -8 -7 -7 -7 -6 -6 -6 -5 -5 -4 ------- Run | Jun Mat Mat Sto Mat Fac Was Fac Fac Low Low Fac Ext Fac Peak Influence 711 | . 19 21 163 280 179 105 711 318 . . 76 315 188 Initial 228 | . . 6 7 36 109 49 65 228 . . 76 31 18 Average 148 | . 10 12 87 142 149 87 255 265 . . 76 148 83 Maximum Alert Level 3 | . . . . 1 . . 3 1 . . . 1 . Low Security (%) 73 | 100 100 100 100 82 100 100 38 . . . 100 72 100 Level 1 22 | . . . . 17 . . 41 100 . . . 27 . Level 2 4 | . . . . . . . 19 . . . . . . Level 3 . | . . . . . . . . . . . . . . Level 4 . | . . . . . . . . . . . . . . Level 5 . | . . . . . . . . . . . . . . High Security . | . . . . . . . . . . . . . . Max Security . | . . . . . . . . . . . . . . Squads Dispatched 5 | . . . . . 2 . 1 . . . . 1 1 Investigation 2 | . . . . . 1 . 1 . . . . . . Extermination . | . . . . . . . . . . . . . . Reinforcement 3 | . . . . . 1 . . . . . . 1 1 Assault . | . . . . . . . . . . . . . . Garrison . | . . . . . . . . . . . . . . Intercept . | . . . . . . . . . . . . . . Searches Triggered . | . . . . . . . . . . . . . . Construction Impeded . | . . . . . . . . . . . . . . Haulers Reinforced . | . . . . . . . . . . . . . . Active Scanning Responses . | . . . . . . . . . . . . . . Cargo Convoy Interrupts . | . . . . . . . . . . . . . . Stealth | -11 -10 -9 -9 -8 -7 -7 -7 -6 -6 -6 -5 -5 -4 --------- Run | Jun Mat Mat Sto Mat Fac Was Fac Fac Low Low Fac Ext Fac Distress Signals 10 | . . . 1 1 . . 4 . . . . 2 2 Communications Jammed . | . . . . . . . . . . . . . . Distress Signals . | . . . . . . . . . . . . . . Times Spotted 155 | . 4 1 17 12 6 6 30 9 3 10 2 32 23 Peak Tracking Total 16 | . 5 1 14 8 5 4 16 6 3 8 2 13 11 Tactical Retreats 15 | . . . . 1 . 1 2 2 . 1 . 4 4 Traps | -11 -10 -9 -9 -8 -7 -7 -7 -6 -6 -6 -5 -5 -4 ------- Run | Jun Mat Mat Sto Mat Fac Was Fac Fac Low Low Fac Ext Fac Traps Triggered 5 | . . . . . 1 . 2 . . . . 2 . Indirectly . | . . . . . . . . . . . . . . Trap Hack Attempts . | . . . . . . . . . . . . . . Triggered . | . . . . . . . . . . . . . . Disarmed . | . . . . . . . . . . . . . . Reprogrammed . | . . . . . . . . . . . . . . Reused . | . . . . . . . . . . . . . . Traps Extracted . | . . . . . . . . . . . . . . Installed . | . . . . . . . . . . . . . . Triggered . | . . . . . . . . . . . . . . Machines | -11 -10 -9 -9 -8 -7 -7 -7 -6 -6 -6 -5 -5 -4 ---------- Run | Jun Mat Mat Sto Mat Fac Was Fac Fac Low Low Fac Ext Fac Machines Disabled 9 | . . . 2 . . . 7 . . . . . . Max in Single Turn 1 | . . . 1 . . . 1 . . . . . . Energy Cycler 2 | . . . . . . . . . . . . 2 . Machines Repaired . | . . . . . . . . . . . . . . Machines Sabotaged . | . . . . . . . . . . . . . . Overloaded Fab Kills . | . . . . . . . . . . . . . . Hacking | -11 -10 -9 -9 -8 -7 -7 -7 -6 -6 -6 -5 -5 -4 --------- Run | Jun Mat Mat Sto Mat Fac Was Fac Fac Low Low Fac Ext Fac Machines Accessed 16 | . 1 1 5 . 1 . 4 1 . . . 3 . Terminals 16 | . 1 1 5 . 1 . 4 1 . . . 3 . Fabricators . | . . . . . . . . . . . . . . Repair Stations . | . . . . . . . . . . . . . . Recycling Units . | . . . . . . . . . . . . . . Scanalyzers . | . . . . . . . . . . . . . . Garrison Access . | . . . . . . . . . . . . . . Total Hacks 25 | . 1 1 6 . 3 . 6 3 . . . 5 . Successful 16 | . 1 1 5 . 1 . 3 1 . . . 4 . Failed 9 | . . . 1 . 2 . 3 2 . . . 1 . Catastrophic 1 | . . . . . . . 1 . . . . . . Database Lockouts . | . . . . . . . . . . . . . . Manual 1 | . . . 1 . . . . . . . . . . Terminals 25 | . 1 1 6 . 3 . 6 3 . . . 5 . Fabricators . | . . . . . . . . . . . . . . Repair Stations . | . . . . . . . . . . . . . . Recycling Units . | . . . . . . . . . . . . . . Scanalyzers . | . . . . . . . . . . . . . . Garrison Access . | . . . . . . . . . . . . . . Terminal Hacks 16 | . 1 1 5 . 1 . 3 1 . . . 4 . Record 1 | . . . . . 1 . . . . . . . . Robot Analysis 2 | . . . 1 . . . 1 . . . . . . Open Door 4 | . . . 2 . . . . . . . . 2 . Open DSF 3 | . . . . . . . 2 1 . . . . . Locate Traps 1 | . . . 1 . . . . . . . . . . Dispatch Records 1 | . . . . . . . . . . . . 1 . Transport Status 1 | . 1 . . . . . . . . . . . . Registered Components 1 | . . . . . . . . . . . . 1 . Zone Layout 2 | . . 1 1 . . . . . . . . . . Fabricator Hacks . | . . . . . . . . . . . . . . Repair Station Hacks . | . . . . . . . . . . . . . . Recycling Unit Hacks . | . . . . . . . . . . . . . . Scanalyzer . | . . . . . . . . . . . . . . Garrison Access Hacks . | . . . . . . . . . . . . . . Unauthorized Hacks . | . . . . . . . . . . . . . . Terminals . | . . . . . . . . . . . . . . Fabricators . | . . . . . . . . . . . . . . Repair Stations . | . . . . . . . . . . . . . . Recycling Units . | . . . . . . . . . . . . . . Scanalyzers . | . . . . . . . . . . . . . . Garrison Access . | . . . . . . . . . . . . . . Data Cores Recovered . | . . . . . . . . . . . . . . Used . | . . . . . . . . . . . . . . Hacking Detections 7 | . 1 . 2 . 1 . 2 . . . . 1 . Full Trace Events 2 | . . . . . 1 . 1 . . . . . . Feedback Events 1 | . . . . . . . 1 . . . . . . Corruption 1 | . . . . . . . 1 . . . . . . Feedback Blocked . | . . . . . . . . . . . . . . Robot Schematics Acquired . | . . . . . . . . . . . . . . Robots Built . | . . . . . . . . . . . . . . Authchips . | . . . . . . . . . . . . . . Time . | . . . . . . . . . . . . . . Total Robot Build Rating . | . . . . . . . . . . . . . . Part Schematics Acquired . | . . . . . . . . . . . . . . Parts Built . | . . . . . . . . . . . . . . Authchips . | . . . . . . . . . . . . . . Time . | . . . . . . . . . . . . . . Total Part Build Rating . | . . . . . . . . . . . . . . Parts Repaired . | . . . . . . . . . . . . . . Time . | . . . . . . . . . . . . . . Parts Recycled . | . . . . . . . . . . . . . . Recycled Matter . | . . . . . . . . . . . . . . Retrieved Matter . | . . . . . . . . . . . . . . Retrieved Components . | . . . . . . . . . . . . . . Parts Scanalyzed . | . . . . . . . . . . . . . . Part Schematics Acquired . | . . . . . . . . . . . . . . Parts Damaged . | . . . . . . . . . . . . . . Bothacking | -11 -10 -9 -9 -8 -7 -7 -7 -6 -6 -6 -5 -5 -4 ------------ Run | Jun Mat Mat Sto Mat Fac Was Fac Fac Low Low Fac Ext Fac Used RIF Installer . | . . . . . . . . . . . . . . Robots Hacked . | . . . . . . . . . . . . . . Non-combat . | . . . . . . . . . . . . . . Combat . | . . . . . . . . . . . . . . Robot Hacks Applied . | . . . . . . . . . . . . . . Relay Couplers Released . | . . . . . . . . . . . . . . Fabnet Peak Effective % . | . . . . . . . . . . . . . . Robots Rewired . | . . . . . . . . . . . . . . Allies Hacked . | . . . . . . . . . . . . . . Hacks Repelled . | . . . . . . . . . . . . . . Allies | -11 -10 -9 -9 -8 -7 -7 -7 -6 -6 -6 -5 -5 -4 -------- Run | Jun Mat Mat Sto Mat Fac Was Fac Fac Low Low Fac Ext Fac Total Allies 21 | . . . . . . 19 . . . . . 2 . Largest Group 19 | . . . . . . 19 12 . . . . 2 . Highest-Rated Group 475 | . . . . . . 475 344 . . . . 56 . Highest-Rated Ally 35 | . . . . . . 35 35 . . . . 31 . Total Orders . | . . . . . . . . . . . . . . Ally Attacks 150 | . . . . . . 71 65 . . . . 14 . Total Damage 4490 | . . . . . . 2954 1256 . . . . 280 . Kills 22 | . . . . . . 7 13 . . . . 2 . Allies Corrupted 1 | . . . . . . . 1 . . . . . . Allies Melted 1 | . . . . . . . . . . . . 1 . Intel | -11 -10 -9 -9 -8 -7 -7 -7 -6 -6 -6 -5 -5 -4 ------- Run | Jun Mat Mat Sto Mat Fac Was Fac Fac Low Low Fac Ext Fac Robot Analysis Total 2 | . . . 1 . . . 1 . . . . . . Derelict Logs Recovered 1 | . . . . . . . . . 1 . . . . Drone Launches . | . . . . . . . . . . . . . . Drone Recoveries . | . . . . . . . . . . . . . . Exploration | -11 -10 -9 -9 -8 -7 -7 -7 -6 -6 -6 -5 -5 -4 ------------- Run | Jun Mat Mat Sto Mat Fac Was Fac Fac Low Low Fac Ext Fac Turns Passed 1956 | 42 57 59 165 127 69 103 432 86 96 26 29 442 223 Spaces Moved 3614 | 35 49 63 136 174 220 173 1220 325 358 96 95 507 163 Core 309 | 1 . . 10 33 . . 36 . . . . 188 41 Treads . | . . . . . . . . . . . . . . Legs 261 | . . . . . . . . . . . . 141 120 Wheels 278 | 34 49 63 126 4 . . . . . . . . 2 Hover . | . . . . . . . . . . . . . . Flight 2766 | . . . . 137 220 173 1184 325 358 96 95 178 . Fastest Speed 24 | 50 90 90 90 32 29 26 26 26 26 24 30 30 50 Average Speed 43 | 90 90 90 96 56 29 30 30 26 26 25 30 64 107 Slowest Speed 515 | 100 90 90 200 250 32 32 515 26 26 30 30 260 300 Overloaded Moves . | . . . . . . . . . . . . . . Propulsion Burnouts . | . . . . . . . . . . . . . . Robots Hopped 25 | . . . . 2 . . 19 3 1 . . . . Cave-ins Triggered 1 | . . . . . . . . . . . . 1 . Exploration Rate (%) 27 | 3 17 9 39 31 10 82 38 14 47 20 6 58 8 Regions Visited 13 Branch Regions 4 Pre-discovered Areas 1 | . . . . . . . . . 1 . . . . Known Exits Taken 4 | . . . . . . . . 1 1 1 1 . . Unknown Exits Taken 7 | 1 1 1 1 1 . . 1 . . . . 1 . Scrap Searched 5 | . . . . . . . . . 3 2 . . . Spaces Dug . | . . . . . . . . . . . . . . Terrain Destroyed 100 | . . . 31 40 . . 28 . . . . 1 . Melee . | . . . . . . . . . . . . . . Projectile 1 | . . . . . . . . . . . . 1 . AOE 99 | . . . 31 40 . . 28 . . . . . . Terrain Rammed . | . . . . . . . . . . . . . . Walls Destroyed . | . . . . . . . . . . . . . . Machines Disabled . | . . . . . . . . . . . . . . Actions | -11 -10 -9 -9 -8 -7 -7 -7 -6 -6 -6 -5 -5 -4 --------- Run | Jun Mat Mat Sto Mat Fac Was Fac Fac Low Low Fac Ext Fac Total 3875 | 42 61 64 156 188 223 221 1256 322 360 96 94 593 199 Wait 83 | . 13 . . . . 44 10 . . . . 14 2 Move 3555 | 34 48 62 135 169 220 172 1183 319 355 95 94 506 163 Hop 22 | . . . . 2 . . 17 2 1 . . . . Pick Up 14 | 2 . . 3 . 2 1 2 . 2 . . 2 . Fast Attach 48 | 6 . 2 . 6 1 3 11 1 . 1 . 10 7 Attach 18 | . . . 3 2 . . 4 . . . . 6 3 Detach 13 | . . . . 3 . . 7 . . . . 3 . Swap 6 | . . . 4 . . . . . . . . 2 . Drop 11 | . . . . 1 . 1 6 . 2 . . 1 . Fire 17 | . . . 6 5 . . 1 . . . . 3 2 Melee 15 | . . . . . . . . . . . . 15 . Ram 7 | . . . 5 . . . 2 . . . . . . Kick 22 | . . . . . . . . . . . . . 22 Crush . | . . . . . . . . . . . . . . Escape Stasis 37 | . . . . . . . 13 . . . . 24 . Rewire 7 | . . . . . . . . . . . . 7 . Trap . | . . . . . . . . . . . . . . Miscellaneous . | . . . . . . . . . . . . . . Route ------- -11/Junkyard -10/Materials -9/Materials -9/Storage -8/Materials -7/Factory -7/Waste -7/Factory -6/Factory -6/Lower Caves -6/Lower Caves -5/Factory -5/Extension -4/Factory History --------- Turn | Location | Event 22 | -11/Junkyard | Discovered new exit (range 15) 43 | -11/Junkyard | Entered Materials 85 | -10/Materials | Discovered new exit (range 15) 100 | -10/Materials | Entered another Materials area 100 | -9/Materials | Evolved 2 slots: Propulsion x1, Utility x1 132 | -9/Materials | Discovered new exit (range 16) 159 | -9/Materials | Entered Storage 301 | -9/Storage | Discovered new exit (range 16) 318 | -9/Storage | Core integrity fell below 50% 324 | -9/Storage | Entered Materials 324 | -8/Materials | Evolved 2 slots: Power x1, Utility x1 329 | -8/Materials | Build established: Mutant 345 | -8/Materials | Lost 7 parts (2p2n1u2w) 416 | -8/Materials | Lost 6 parts (2p1u3w) 446 | -8/Materials | Discovered new exit (range 16) 451 | -8/Materials | Entered Factory 451 | -7/Factory | Evolved 2 slots: Power x1, Propulsion x1 520 | -7/Factory | Sucked down chute 520 | -7/Factory | Entered Waste 523 | -7/Waste | Spotted C-40 Crusher 528 | -7/Waste | Spotted C-40 Crusher 534 | -7/Waste | Spotted C-40 Crusher 540 | -7/Waste | Spotted C-40 Crusher 541 | -7/Waste | Spotted C-40 Crusher 545 | -7/Waste | Warlord forces began an assault 563 | -7/Waste | Allies destroyed C-40 Crusher 574 | -7/Waste | Discovered new exit (range 12) 623 | -7/Waste | Entered Factory 623 | -7/Factory | Accompanied by 12 allies 731 | -7/Factory | Build established: Sprinter 967 | -7/Factory | Core integrity fell below 50% 985 | -7/Factory | Lost 9 parts (2p5n2u) 991 | -7/Factory | Destroyed 10 combat bots 1045 | -7/Factory | Discovered new exit (range 13) 1055 | -7/Factory | Entered another Factory area 1055 | -6/Factory | Evolved 2 slots: Propulsion x1, Utility x1 1140 | -6/Factory | Discovered new exit (range 6) 1141 | -6/Factory | Identified exit to Lower Caves 1141 | -6/Factory | Entered Lower Caves 1177 | -6/Lower Caves | Learned location of Zion (-6) 1233 | -6/Lower Caves | Discovered new exit (range 16) 1237 | -6/Lower Caves | Identified exit to Lower Caves 1237 | -6/Lower Caves | Entered another Lower Caves area 1256 | -6/Lower Caves | Spotted B-75 Beast 1261 | -6/Lower Caves | Discovered new exit (range 10) 1263 | -6/Lower Caves | Identified exit to Factory 1263 | -6/Lower Caves | Entered Factory 1263 | -5/Factory | Evolved 2 slots: Propulsion x1, Utility x1 1288 | -5/Factory | Lost 4 parts (2p2n) 1288 | -5/Factory | Discovered new exit (range 13) 1291 | -5/Factory | Identified exit to Extension 1292 | -5/Factory | Entered Extension 1363 | -5/Extension | Spotted B-75 Beast 1365 | -5/Extension | Spotted B-75 Beast 1397 | -5/Extension | Lost 4 parts (1p3n) 1427 | -5/Extension | Rescued a captive Derelict 1443 | -5/Extension | Rescued a captive Derelict 1585 | -5/Extension | Crushed by falling debris 1628 | -5/Extension | Lost 3 parts (1p2u) 1648 | -5/Extension | Energy Cycler disabled 1649 | -5/Extension | Rescued a captive Derelict 1649 | -5/Extension | Rescued a captive Derelict 1655 | -5/Extension | Rescued a captive Derelict 1713 | -5/Extension | Discovered new exit (range 16) 1728 | -5/Extension | Core integrity fell below 50% 1734 | -5/Extension | Core integrity fell below 20% 1734 | -5/Extension | Entered Factory 1734 | -4/Factory | Evolved 2 slots: Propulsion x1, Weapon x1 1757 | -4/Factory | Lost 9 parts (3p5n1w) 1911 | -4/Factory | Core integrity fell below 50% 1936 | -4/Factory | Core integrity fell below 20% 1957 | -4/Factory | Destroyed by S-27 Virus with Autogun Last Messages --------------- 01925_ Acquired Antimatter Reactor. 01926_ R-10 Processor collects Wheel. 01927_ K-01 Serf collects debris. 01927_ Assembly Bed disabled. 01928_ R-10 Processor collects Wheel. 01930_ R-10 Processor collects Lgt. Ion Engine. 01931_ K-01 Serf collects debris. 01935_ Acquired VSS Leg. 01935_ Slug penetrates Terminal. 01938_ Acquired Antimatter Reactor. 01939_ Antimatter Reactor destroyed. 01940_ K-01 Serf collects debris. 01942_ Penetrated by Slug. 01942_ Slug penetrates Assembly Bed. 01942_ Slug penetrates Terminal. 01942_ Slug penetrates Assembly Bed. 01943_ K-01 Serf collects debris. 01945_ K-01 Serf cleans the Terminal. 01948_ K-01 Serf collects debris. 01949_ Antimatter Reactor destroyed. Map ----- +----------------------------------------------------+ | ???????????????????????????????????# #???????? | | ???????????????????????????????????# #???????? | | ???????????????????????????????????# #???????? | | ???????????????????????????????????#^ #???????? | | ???????????????????????????????????# #???????? | | ?????????????????????###+##????????# #???????? | | ?????????????????????# ######### #???????? | | ?????????????????????# #???????? | | ?????????????????????# +???????? | | ?????????????????????+ % ""#???????? | | ?????????????????????# """" ""#???????? | | ?????????????????????# """" ""#???????? | | ????????????########## """" T#???????? | | ??????????? "" ! ""#???????? | | ??????????? """" *! ""#???????? | | ?????????? " " **! ""#???????? | | ?????????? / ????? | | ?????????? ## #????? | | ?????????????# ######/########### #???????? | | ??????????????????# s #???? #???????? | | ??????????????????# #???? #???????? | | ??????????????????# s #???? #???????? | | ??????????????????# """ """ ! #???? #???????? | | ??????????????????# """ """ #????? #???????? | | ??????????????????# """ """s #???????? #???????? | | ??????????????????# @s #?????????????????? | | ??????????????????# [[] #?????????????????? | | ??????????????????# [[] #?????????????????? | | ??????????????????# [] #?????????????????? | | ??????????????????# #?????????????????? | | ??????????????????# = #?????????????????? | | ??????????????????##############?????????????????? | | ?????????????????????????????????????????????????? | | ?????????????????????????????????????????????????? | | ?????????????????????????????????????????????????? | | ?????????????????????????????????????????????????? | | ?????????????????????????????????????????????????? | | ?????????????????????????????????????????????????? | | ?????????????????????????????????????????????????? | | ?????????????????????????????????????????????????? | | ?????????????????????????????????????????????????? | | ?????????????????????????????????????????????????? | | ?????????????????????????????????????????????????? | | ?????????????????????????????????????????????????? | | ?????????????????????????????????????????????????? | | ?????????????????????????????????????????????????? | | ?????????????????????????????????????????????????? | | ?????????????????????????????????????????????????? | | ?????????????????????????????????????????????????? | | ?????????????????????????????????????????????????? | +----------------------------------------------------+ Best States ------------- Heat Dissipation 43 Energy Generation 42 Energy Capacity 480 Matter Stores 300 Matter Capacity 300 Sight Range 16 Terrain Scan Range 14 Terrain Scan Density 10 ECM Strength 2 Armor Coverage 160 Resistance: KI 20 Resistance: TH 40 Resistance: EX 20 Resistance: EM 20 Resistance: I 20 Resistance: S 20 Resistance: P 20 Evasion (%) 64 Targeting Accuracy 6 Force Boost 20 Offensive Hacking 10 Item Schematics ----------------- None Robot Schematics ------------------ None Fabricated ------------ Nothing Alien Tech Used ----------------- None Achievements -------------- Can't Catch Me Challenges ------------ None Game ------ Seed RiotTransmissionStick Manual? 0 Play Time 00:49:35 Cumulative 19.0 hours Start 2023.10.21 @ 22:29:00 End 2023.10.21 @ 23:16:49 Sessions 1 Manual Loads 0 Difficulty Adventurer Special Mode None Game No. 53 Rogue 32 Adventurer 21 Explorer 0 Win Type - Total 0 Types 0/0/0/0/0/0/0/0/0 Lore% 23 Gallery% 33 Achievement% 21 Wizard Run 0 Options --------- ASCII 0 Keyboard 1 Movement Numpad Keybinds 0 Fullscreen 2 Font 18/X11 Map View 76x50 Tactical HUD 1 Map Filters NONE Filters NONE Steam 1 RUN: ff5e6ce7-1ca1-41bc-bfed-cb560be5477a